[Event "*** Titled Tuesday Blitz"]
[Site "Chess.com"]
[Date "2019.09.03"]
[Round "3"]
[White "FearNoEvil12"]
[Black "TomPolgar"]
[Result "0-1"]
[WhiteElo "1983"]
[BlackElo "2315"]
[TimeControl "180+2"]
[EndTime "15:41:06 PDT"]
[Termination "TomPolgar won by checkmate"]

1. e4 {[%clk 0:03:01.9]} 1... c5 {[%clk 0:03:00.6]} 2. Nc3 {[%clk 0:03:01.7]}
2... Nc6 {[%clk 0:03:02]} 3. f4 {[%clk 0:03:03]} 3... g6 {[%clk 0:03:03.3]} 4.
Nf3 {[%clk 0:03:03.9]} 4... Bg7 {[%clk 0:03:04.8]} 5. Bc4 {[%clk 0:03:04.6]}
5... e6 {[%clk 0:03:05.1]} 6. f5 {[%clk 0:03:06]} 6... Nge7 {[%clk 0:02:52.7]}
7. fxg6 {[%clk 0:03:05.7]} 7... hxg6 {[%clk 0:02:41.1]} 8. d3 {[%clk 0:03:06.4]}
8... d5 {[%clk 0:02:39.6]} 9. Bb3 {[%clk 0:03:06.5]} 9... Nd4 {[%clk 0:01:56.9]}
10. O-O {[%clk 0:03:04.9]} 10... Qc7 {[%clk 0:01:43.2]} 11. g3 {[%clk
0:03:04.3]} 11... Nxb3 {[%clk 0:01:11]} 12. axb3 {[%clk 0:03:03.8]} 12... d4
{[%clk 0:00:52.8]} 13. Ne2 {[%clk 0:02:53.3]} 13... Nc6 {[%clk 0:00:36.4]} 14.
Ng5 {[%clk 0:02:48.3]} 14... f6 {[%clk 0:00:32.9]} 15. Nf3 {[%clk 0:02:47.7]}
15... e5 {[%clk 0:00:24.8]} 16. Nh4 {[%clk 0:02:46.9]} 16... Qf7 {[%clk
0:00:21.2]} 17. Bd2 {[%clk 0:02:35]} 17... Bg4 {[%clk 0:00:18.4]} 18. Qe1 {[%clk
0:02:33.3]} 18... O-O-O {[%clk 0:00:18]} 19. Nc1 {[%clk 0:02:17.9]} 19... Kb8
{[%clk 0:00:16.2]} 20. c3 {[%clk 0:02:17.9]} 20... Bh6 {[%clk 0:00:05]} 21. Bxh6
{[%clk 0:02:12.3]} 21... Rxh6 {[%clk 0:00:06.9]} 22. b4 {[%clk 0:02:07.5]} 22...
cxb4 {[%clk 0:00:05.8]} 23. cxb4 {[%clk 0:02:05.8]} 23... Ne7 {[%clk 0:00:06.3]}
24. b5 {[%clk 0:02:03.9]} 24... b6 {[%clk 0:00:03.9]} 25. Qb4 {[%clk 0:01:58]}
25... g5 {[%clk 0:00:03.9]} 26. Ng2 {[%clk 0:01:56.4]} 26... Bh3 {[%clk
0:00:03.9]} 27. Rf2 {[%clk 0:01:43.7]} 27... Nc8 {[%clk 0:00:05]} 28. Nb3 {[%clk
0:01:39.1]} 28... Qe6 {[%clk 0:00:04.2]} 29. Rc1 {[%clk 0:01:34.7]} 29... Rdh8
{[%clk 0:00:04.5]} 30. Ne1 {[%clk 0:01:05.3]} 30... Qd7 {[%clk 0:00:04]} 31. Rc6
{[%clk 0:01:01.4]} 31... Be6 {[%clk 0:00:03.4]} 32. Nd2 {[%clk 0:00:51.5]} 32...
Bg4 {[%clk 0:00:02.4]} 33. Nc2 {[%clk 0:00:48.4]} 33... Qh7 {[%clk 0:00:02.6]}
34. Nf1 {[%clk 0:00:45.7]} 34... Bh3 {[%clk 0:00:02.8]} 35. Rxc8+ {[%clk
0:00:38.9]} 35... Rxc8 {[%clk 0:00:03.2]} 36. Qd6+ {[%clk 0:00:38.4]} 36... Qc7
{[%clk 0:00:04.4]} 37. Qxc7+ {[%clk 0:00:38]} 37... Rxc7 {[%clk 0:00:05.4]} 38.
Nb4 {[%clk 0:00:39.4]} 38... Bxf1 {[%clk 0:00:03.8]} 39. Na6+ {[%clk 0:00:35.5]}
39... Kb7 {[%clk 0:00:04.5]} 40. Kxf1 {[%clk 0:00:30.4]} 40... Rc1+ {[%clk
0:00:05]} 41. Kg2 {[%clk 0:00:31.1]} 41... Rg6 {[%clk 0:00:02.9]} 42. g4 {[%clk
0:00:28.8]} 42... Kc8 {[%clk 0:00:03.6]} 43. Nb4 {[%clk 0:00:25.9]} 43... Kc7
{[%clk 0:00:03.1]} 44. Nd5+ {[%clk 0:00:25.8]} 44... Kd6 {[%clk 0:00:03.8]} 45.
Nxf6 {[%clk 0:00:26.5]} 45... Ke6 {[%clk 0:00:03.2]} 46. Nd5 {[%clk 0:00:24.3]}
46... Rd1 {[%clk 0:00:03.3]} 47. Rc2 {[%clk 0:00:19.4]} 47... Rg8 {[%clk
0:00:02.6]} 48. Rc7 {[%clk 0:00:18.4]} 48... Kd6 {[%clk 0:00:02.5]} 49. Rxa7
{[%clk 0:00:17.7]} 49... Rxd3 {[%clk 0:00:03.5]} 50. Rc7 {[%clk 0:00:14.8]}
50... Ra8 {[%clk 0:00:03.1]} 51. Rc6+ {[%clk 0:00:15.4]} 51... Kd7 {[%clk
0:00:03.9]} 52. Nxb6+ {[%clk 0:00:16.4]} 52... Kd8 {[%clk 0:00:05.1]} 53. Nxa8
{[%clk 0:00:17.9]} 53... Rb3 {[%clk 0:00:06.3]} 54. b6 {[%clk 0:00:17.9]} 54...
Rxb2+ {[%clk 0:00:07.2]} 55. Kg3 {[%clk 0:00:17.2]} 55... d3 {[%clk 0:00:08.5]}
56. Rd6+ {[%clk 0:00:14.5]} 56... Kc8 {[%clk 0:00:09.9]} 57. Rxd3 {[%clk
0:00:14.8]} 57... Kb7 {[%clk 0:00:11.1]} 58. Rd8 {[%clk 0:00:15.6]} 58... Ra2
{[%clk 0:00:08.7]} 59. Nc7 {[%clk 0:00:14.4]} 59... Kxb6 {[%clk 0:00:09.3]} 60.
Nd5+ {[%clk 0:00:15.7]} 60... Kc5 {[%clk 0:00:10.8]} 61. Ne3 {[%clk 0:00:14.4]}
61... Ra3 {[%clk 0:00:07.9]} 62. Kf3 {[%clk 0:00:14.9]} 62... Kc6 {[%clk
0:00:07.4]} 63. Rd5 {[%clk 0:00:15.5]} 63... Ra2 {[%clk 0:00:08.9]} 64. h3
{[%clk 0:00:14.8]} 64... Rh2 {[%clk 0:00:08.3]} 65. Kg3 {[%clk 0:00:15.1]} 65...
Re2 {[%clk 0:00:09]} 66. Nf5 {[%clk 0:00:15.8]} 66... Rxe4 {[%clk 0:00:09.2]}
67. Rd6+ {[%clk 0:00:15.9]} 67... Kc5 {[%clk 0:00:09.6]} 68. Rg6 {[%clk
0:00:16.6]} 68... Ra4 {[%clk 0:00:08]} 69. Rxg5 {[%clk 0:00:17.2]} 69... Kd5
{[%clk 0:00:08.4]} 70. Ne3+ {[%clk 0:00:13.8]} 70... Ke4 {[%clk 0:00:08.3]} 71.
Ng2 {[%clk 0:00:14.6]} 71... Ra3+ {[%clk 0:00:08.1]} 72. Kf2 {[%clk 0:00:13.1]}
72... Ra2+ {[%clk 0:00:08.4]} 73. Kf1 {[%clk 0:00:14.1]} 73... Kf3 {[%clk
0:00:04.2]} 74. Ne1+ {[%clk 0:00:14.1]} 74... Kg3 {[%clk 0:00:03.6]} 75. Rxe5
{[%clk 0:00:13.9]} 75... Kxh3 {[%clk 0:00:03.2]} 76. g5 {[%clk 0:00:14.6]} 76...
Kh4 {[%clk 0:00:03]} 77. g6 {[%clk 0:00:14.9]} 77... Ra6 {[%clk 0:00:03.6]} 78.
Nf3+ {[%clk 0:00:10.6]} 78... Kg3 {[%clk 0:00:04.2]} 79. Rg5+ {[%clk 0:00:11.6]}
79... Kxf3 {[%clk 0:00:03.3]} 80. g7 {[%clk 0:00:12.1]} 80... Ra1# {[%clk
0:00:03.7]} 0-1

[Event "*** Titled Tuesday Blitz"]
[Site "Chess.com"]
[Date "2019.09.03"]
[Round "3"]
[White "M1711"]
[Black "r31415"]
[Result "1/2-1/2"]
[WhiteElo "2562"]
[BlackElo "2364"]
[TimeControl "180+2"]
[EndTime "15:41:13 PDT"]
[Termination "Game drawn by agreement"]

1. d4 {[%clk 0:03:01.9]} 1... d6 {[%clk 0:03:00.5]} 2. e4 {[%clk 0:03:00.1]}
2... Nf6 {[%clk 0:03:01.1]} 3. Nc3 {[%clk 0:03:00.9]} 3... g6 {[%clk 0:03:02.7]}
4. f4 {[%clk 0:03:01.1]} 4... Bg7 {[%clk 0:03:03.8]} 5. Nf3 {[%clk 0:03:01.9]}
5... O-O {[%clk 0:03:05.4]} 6. e5 {[%clk 0:03:02.7]} 6... dxe5 {[%clk
0:03:05.9]} 7. fxe5 {[%clk 0:03:03.7]} 7... Nd5 {[%clk 0:03:07.5]} 8. Bc4 {[%clk
0:03:04.1]} 8... Nxc3 {[%clk 0:03:08.6]} 9. bxc3 {[%clk 0:03:05.1]} 9... c5
{[%clk 0:03:10.5]} 10. Be3 {[%clk 0:03:00.8]} 10... Nc6 {[%clk 0:03:11]} 11. O-O
{[%clk 0:02:51.6]} 11... Bg4 {[%clk 0:03:10.5]} 12. Be2 {[%clk 0:02:39]} 12...
Qa5 {[%clk 0:02:38.9]} 13. Qe1 {[%clk 0:02:33.5]} 13... Rad8 {[%clk 0:02:29.5]}
14. Bd2 {[%clk 0:01:55.8]} 14... Qa4 {[%clk 0:02:08.5]} 15. Bd3 {[%clk 0:01:42]}
15... cxd4 {[%clk 0:01:57.9]} 16. c4 {[%clk 0:01:37.8]} 16... Bxf3 {[%clk
0:01:55]} 17. gxf3 {[%clk 0:01:34.8]} 17... Nxe5 {[%clk 0:01:55.8]} 18. f4
{[%clk 0:01:36.7]} 18... Nxc4 {[%clk 0:01:50.5]} 19. Rb1 {[%clk 0:01:31.4]}
19... Nxd2 {[%clk 0:01:42.8]} 20. Qxd2 {[%clk 0:01:32.5]} 20... b6 {[%clk
0:01:34.7]} 21. Rfe1 {[%clk 0:01:30.8]} 21... e6 {[%clk 0:01:34.2]} 22. Bb5
{[%clk 0:01:28.9]} 22... Qa3 {[%clk 0:01:28.8]} 23. Rb3 {[%clk 0:01:26.4]} 23...
Qd6 {[%clk 0:01:18]} 24. a4 {[%clk 0:01:26.1]} 24... Bh6 {[%clk 0:01:17]} 25.
Rf1 {[%clk 0:01:25.8]} 25... e5 {[%clk 0:01:17.1]} 26. fxe5 {[%clk 0:01:14]}
26... Bxd2 {[%clk 0:01:17.1]} 27. exd6 {[%clk 0:01:15.3]} 27... Rxd6 {[%clk
0:01:18.7]} 28. Bc4 {[%clk 0:01:13.9]} 28... Rc6 {[%clk 0:01:16]} 29. Bd3 {[%clk
0:01:11.3]} 29... Re8 {[%clk 0:01:11.3]} 30. Bb5 {[%clk 0:01:09.8]} 30... Rec8
{[%clk 0:00:43.1]} 31. Bxc6 {[%clk 0:01:10.4]} 31... Rxc6 {[%clk 0:00:45]} 32.
Rb2 {[%clk 0:00:55]} 32... f5 {[%clk 0:00:37.3]} 33. Kg2 {[%clk 0:00:51.5]}
33... Kg7 {[%clk 0:00:35.5]} 34. Rd1 {[%clk 0:00:51.5]} 34... Be3 {[%clk
0:00:27.4]} 35. a5 {[%clk 0:00:50.8]} 35... g5 {[%clk 0:00:25.6]} 36. axb6
{[%clk 0:00:50.5]} 36... axb6 {[%clk 0:00:27.5]} 37. Ra1 {[%clk 0:00:49]} 37...
Kg6 {[%clk 0:00:23.7]} 38. Ra6 {[%clk 0:00:48.9]} 38... Kh5 {[%clk 0:00:18.7]}
39. Raxb6 {[%clk 0:00:47.9]} 39... Rxb6 {[%clk 0:00:19.3]} 40. Rxb6 {[%clk
0:00:49.8]} 40... d3 {[%clk 0:00:12.4]} 41. Rc6 {[%clk 0:00:44]} 41... dxc2
{[%clk 0:00:10.2]} 42. Rxc2 {[%clk 0:00:43.9]} 42... g4 {[%clk 0:00:08.7]} 43.
Rc7 {[%clk 0:00:42.3]} 43... h6 {[%clk 0:00:09.2]} 44. Rg7 {[%clk 0:00:36.7]}
44... Bd4 {[%clk 0:00:08.4]} 45. Rg8 {[%clk 0:00:35.8]} 45... f4 {[%clk
0:00:07.8]} 46. h3 {[%clk 0:00:34.6]} 46... f3+ {[%clk 0:00:07.1]} 47. Kg3
{[%clk 0:00:32.5]} 47... Be5+ {[%clk 0:00:07.8]} 48. Kf2 {[%clk 0:00:33.1]}
48... gxh3 {[%clk 0:00:08]} 49. Kxf3 {[%clk 0:00:31.7]} 49... h2 {[%clk
0:00:06.8]} 50. Kg2 {[%clk 0:00:31.4]} 50... Kh4 {[%clk 0:00:07.1]} 51. Re8
{[%clk 0:00:25.8]} 51... Bf4 {[%clk 0:00:04.6]} 52. Rg8 {[%clk 0:00:21.2]} 52...
Be5 {[%clk 0:00:04.8]} 53. Rg6 {[%clk 0:00:21]} 53... Bf4 {[%clk 0:00:04.1]} 54.
Ra6 {[%clk 0:00:18.8]} 54... Kg4 {[%clk 0:00:03.5]} 55. Rg6+ {[%clk 0:00:16.4]}
55... Kh4 {[%clk 0:00:03.7]} 56. Rg7 {[%clk 0:00:17.6]} 56... Be5 {[%clk
0:00:03.3]} 57. Rf7 {[%clk 0:00:17.1]} 57... Kg5 {[%clk 0:00:03.5]} 58. Rf1
{[%clk 0:00:16.9]} 58... Kg4 {[%clk 0:00:03.9]} 59. Re1 {[%clk 0:00:17.5]} 59...
Bf4 {[%clk 0:00:04.4]} 60. Re6 {[%clk 0:00:17.4]} 60... h5 {[%clk 0:00:05]} 61.
Rg6+ {[%clk 0:00:17.6]} 61... Kf5 {[%clk 0:00:05]} 62. Rg8 {[%clk 0:00:17.7]}
62... h4 {[%clk 0:00:05.6]} 63. Rh8 {[%clk 0:00:17.5]} 63... Kg4 {[%clk
0:00:05.8]} 64. Ra8 {[%clk 0:00:17.4]} 64... Bg3 {[%clk 0:00:06.5]} 65. Ra4+
{[%clk 0:00:17]} 65... Kf5 {[%clk 0:00:07.3]} 66. Ra1 {[%clk 0:00:16.6]} 66...
Ke4 {[%clk 0:00:08.4]} 67. Ra4+ {[%clk 0:00:13.9]} 67... Ke3 {[%clk 0:00:09.5]}
68. Kh1 {[%clk 0:00:14.6]} 68... Kf2 {[%clk 0:00:09.9]} 69. Rg4 {[%clk
0:00:14.2]} 69... Kf3 {[%clk 0:00:10.7]} 70. Rg8 {[%clk 0:00:15.1]} 70... Ke2
{[%clk 0:00:11.2]} 71. Kg2 {[%clk 0:00:15.2]} 71... Kd2 {[%clk 0:00:11.7]} 72.
Re8 {[%clk 0:00:16]} 72... Kd3 {[%clk 0:00:12.6]} 73. Re7 {[%clk 0:00:16.6]}
73... Kd2 {[%clk 0:00:13.6]} 74. Re6 {[%clk 0:00:17.6]} 74... Kd3 {[%clk
0:00:14.8]} 75. Ra6 {[%clk 0:00:16.3]} 75... Kc4 {[%clk 0:00:15.8]} 76. Rd6
{[%clk 0:00:15.3]} 76... Kc5 {[%clk 0:00:16.7]} 77. Rc6+ {[%clk 0:00:13.2]}
77... Kxc6 {[%clk 0:00:16.5]} 78. Kh1 {[%clk 0:00:14.1]} 78... Kd5 {[%clk
0:00:17.9]} 79. Kg2 {[%clk 0:00:15.4]} 79... Ke4 {[%clk 0:00:19.6]} 80. Kh1
{[%clk 0:00:17]} 80... Kd5 {[%clk 0:00:19.4]} 81. Kg2 {[%clk 0:00:18.9]} 81...
Kc6 {[%clk 0:00:20.9]} 82. Kh1 {[%clk 0:00:20.8]} 82... Kb7 {[%clk 0:00:22.3]}
83. Kg2 {[%clk 0:00:22.7]} 83... Ka8 {[%clk 0:00:23.4]} 84. Kh1 {[%clk
0:00:24.6]} 1/2-1/2

[Event "*** Titled Tuesday Blitz"]
[Site "Chess.com"]
[Date "2019.09.03"]
[Round "3"]
[White "Alexander_Moskalenko"]
[Black "beatles_22"]
[Result "1/2-1/2"]
[WhiteElo "2835"]
[BlackElo "2676"]
[TimeControl "180+2"]
[EndTime "15:41:14 PDT"]
[Termination "Game drawn by agreement"]

1. c4 {[%clk 0:02:58.4]} 1... Nf6 {[%clk 0:03:00.2]} 2. Nc3 {[%clk 0:02:57.8]}
2... g6 {[%clk 0:03:01.5]} 3. d4 {[%clk 0:02:54.8]} 3... Bg7 {[%clk 0:03:02]} 4.
g3 {[%clk 0:02:54]} 4... O-O {[%clk 0:03:02.7]} 5. Bg2 {[%clk 0:02:55.5]} 5...
Nc6 {[%clk 0:03:03.8]} 6. Nf3 {[%clk 0:02:56.5]} 6... d5 {[%clk 0:03:04.9]} 7.
cxd5 {[%clk 0:02:56.1]} 7... Nxd5 {[%clk 0:03:06.8]} 8. O-O {[%clk 0:02:57.6]}
8... e5 {[%clk 0:03:07.6]} 9. Bg5 {[%clk 0:02:46.6]} 9... f6 {[%clk 0:03:02.3]}
10. Bd2 {[%clk 0:02:47.4]} 10... Nxc3 {[%clk 0:02:37.1]} 11. Bxc3 {[%clk
0:02:49.3]} 11... e4 {[%clk 0:02:35.9]} 12. Nd2 {[%clk 0:02:50.1]} 12... f5
{[%clk 0:02:36.6]} 13. Qb3+ {[%clk 0:02:50.8]} 13... Kh8 {[%clk 0:02:30.1]} 14.
e3 {[%clk 0:02:50.5]} 14... Ne7 {[%clk 0:02:26.1]} 15. Rae1 {[%clk 0:02:30]}
15... Qd5 {[%clk 0:02:14.3]} 16. f3 {[%clk 0:02:28.9]} 16... exf3 {[%clk
0:01:38.5]} 17. Bxf3 {[%clk 0:02:11.9]} 17... Qxb3 {[%clk 0:01:38.8]} 18. Nxb3
{[%clk 0:02:12.5]} 18... c6 {[%clk 0:01:40.3]} 19. Bb4 {[%clk 0:02:04.9]} 19...
Re8 {[%clk 0:01:29.3]} 20. e4 {[%clk 0:02:05.9]} 20... Be6 {[%clk 0:00:52.9]}
21. e5 {[%clk 0:02:00.4]} 21... Nd5 {[%clk 0:00:32.6]} 22. Bd6 {[%clk
0:01:53.8]} 22... b6 {[%clk 0:00:20.7]} 23. Rc1 {[%clk 0:01:41.2]} 23... Rac8
{[%clk 0:00:22]} 24. Rfe1 {[%clk 0:01:30.2]} 24... Kg8 {[%clk 0:00:21.9]} 25.
Kf2 {[%clk 0:01:28.3]} 25... Bh6 {[%clk 0:00:22.9]} 26. Rc2 {[%clk 0:01:28.1]}
26... Red8 {[%clk 0:00:24.2]} 27. Nd2 {[%clk 0:01:01]} 27... Rxd6 {[%clk
0:00:20.7]} 28. exd6 {[%clk 0:01:00.9]} 28... Nb4 {[%clk 0:00:22.6]} 29. Rxe6
{[%clk 0:00:57.7]} 29... Nxc2 {[%clk 0:00:23.8]} 30. d7 {[%clk 0:00:59.2]} 30...
Rf8 {[%clk 0:00:25.5]} 31. Re8 {[%clk 0:00:58]} 31... Bg5 {[%clk 0:00:27]} 32.
Nb3 {[%clk 0:00:51]} 32... Kf7 {[%clk 0:00:25.9]} 33. Bxc6 {[%clk 0:00:51.1]}
33... Nb4 {[%clk 0:00:27.2]} 34. d5 {[%clk 0:00:47.9]} 34... Bd8 {[%clk
0:00:22.5]} 35. Ke3 {[%clk 0:00:42.9]} 35... Nxc6 {[%clk 0:00:21.5]} 36. Rxf8+
{[%clk 0:00:43.3]} 36... Kxf8 {[%clk 0:00:23.4]} 37. dxc6 {[%clk 0:00:44.9]}
37... Ke7 {[%clk 0:00:25.3]} 38. Nd4 {[%clk 0:00:44.2]} 38... Kd6 {[%clk
0:00:26.4]} 39. b4 {[%clk 0:00:45.2]} 39... a6 {[%clk 0:00:27.6]} 40. a4 {[%clk
0:00:45.7]} 40... b5 {[%clk 0:00:29.2]} 41. axb5 {[%clk 0:00:43.4]} 41... axb5
{[%clk 0:00:31.1]} 42. Kd3 {[%clk 0:00:32.5]} 42... Bb6 {[%clk 0:00:32.3]} 43.
Kc3 {[%clk 0:00:20.9]} 43... Bd8 {[%clk 0:00:32.9]} 44. Kd2 {[%clk 0:00:20.4]}
44... Bb6 {[%clk 0:00:33.9]} 45. Ke2 {[%clk 0:00:21.5]} 45... Bd8 {[%clk
0:00:33.7]} 46. Kf3 {[%clk 0:00:22.3]} 46... Bb6 {[%clk 0:00:28.9]} 47. Kf4
{[%clk 0:00:22.9]} 47... Bd8 {[%clk 0:00:30]} 48. g4 {[%clk 0:00:22.1]} 48...
fxg4 {[%clk 0:00:30.8]} 49. Kxg4 {[%clk 0:00:24]} 49... Kd5 {[%clk 0:00:31.9]}
50. c7 {[%clk 0:00:18.7]} 50... Bxc7 {[%clk 0:00:32.6]} 51. Nxb5 {[%clk
0:00:20.1]} 51... Bd8 {[%clk 0:00:32.6]} 52. Nc3+ {[%clk 0:00:18.8]} 52... Kc6
{[%clk 0:00:31.9]} 53. Ne4 {[%clk 0:00:20.2]} 53... Kxd7 {[%clk 0:00:32]} 54.
Ng5 {[%clk 0:00:21.7]} 54... h5+ {[%clk 0:00:30.1]} 55. Kf4 {[%clk 0:00:22.7]}
55... Bc7+ {[%clk 0:00:30.9]} 56. Ke4 {[%clk 0:00:21]} 56... Bxh2 {[%clk
0:00:32.8]} 57. Nf3 {[%clk 0:00:22.3]} 57... Bg3 {[%clk 0:00:31.8]} 58. Ng5
{[%clk 0:00:20]} 58... Kc6 {[%clk 0:00:28.6]} 59. Ne6 {[%clk 0:00:19.2]} 59...
h4 {[%clk 0:00:28.2]} 60. Kf3 {[%clk 0:00:18.1]} 60... Be5 {[%clk 0:00:25.1]}
61. Kg4 {[%clk 0:00:16.3]} 61... Bf6 {[%clk 0:00:24.2]} 62. Nf4 {[%clk
0:00:16.9]} 62... g5 {[%clk 0:00:25.3]} 63. Nh3 {[%clk 0:00:17.3]} 63... Kb5
{[%clk 0:00:25.9]} 64. Kf3 {[%clk 0:00:17]} 64... Kxb4 {[%clk 0:00:26.4]} 65.
Nxg5 {[%clk 0:00:18.1]} 65... Bxg5 {[%clk 0:00:26.5]} 66. Kg2 {[%clk 0:00:19.5]}
66... Kc3 {[%clk 0:00:28.4]} 67. Kh1 {[%clk 0:00:21]} 67... Kd3 {[%clk
0:00:30.1]} 68. Kg1 {[%clk 0:00:22.4]} 68... Ke4 {[%clk 0:00:31.7]} 69. Kh1
{[%clk 0:00:24.3]} 69... Kf4 {[%clk 0:00:33.2]} 70. Kg1 {[%clk 0:00:25.6]} 70...
Kg3 {[%clk 0:00:35.1]} 71. Kh1 {[%clk 0:00:27.5]} 71... h3 {[%clk 0:00:36.6]}
72. Kg1 {[%clk 0:00:28.3]} 72... Be3+ {[%clk 0:00:38.5]} 73. Kh1 {[%clk
0:00:29.1]} 73... Kh4 {[%clk 0:00:40.4]} 74. Kh2 {[%clk 0:00:29.1]} 74... Bd4
{[%clk 0:00:42.3]} 75. Kh1 {[%clk 0:00:11.4]} 75... Be5 {[%clk 0:00:44.2]} 76.
Kg1 {[%clk 0:00:04.5]} 76... Bg3 {[%clk 0:00:46.1]} 77. Kh1 {[%clk 0:00:06.4]}
1/2-1/2

[Event "*** Titled Tuesday Blitz"]
[Site "Chess.com"]
[Date "2019.09.03"]
[Round "3"]
[White "MartinMatthiesen"]
[Black "DeviatkinAndrey"]
[Result "1/2-1/2"]
[WhiteElo "2448"]
[BlackElo "2681"]
[TimeControl "180+2"]
[EndTime "15:41:38 PDT"]
[Termination "Game drawn by agreement"]

1. d4 {[%clk 0:02:54.4]} 1... a5 {[%clk 0:03:00.2]} 2. e4 {[%clk 0:02:52.7]}
2... b6 {[%clk 0:03:00.7]} 3. Nf3 {[%clk 0:02:51.9]} 3... Ba6 {[%clk 0:03:01.6]}
4. c4 {[%clk 0:02:48.1]} 4... g6 {[%clk 0:03:00.7]} 5. Nc3 {[%clk 0:02:48]} 5...
Bg7 {[%clk 0:03:02.3]} 6. Bf4 {[%clk 0:02:42.1]} 6... d6 {[%clk 0:03:03]} 7. Be2
{[%clk 0:02:37.5]} 7... Nd7 {[%clk 0:03:03.8]} 8. O-O {[%clk 0:02:35.2]} 8... e5
{[%clk 0:03:04.6]} 9. Bg5 {[%clk 0:02:35.9]} 9... Ngf6 {[%clk 0:03:02.3]} 10.
Qc2 {[%clk 0:02:19.1]} 10... h6 {[%clk 0:03:01.7]} 11. Bh4 {[%clk 0:01:56.2]}
11... O-O {[%clk 0:02:53.1]} 12. Rad1 {[%clk 0:01:54.4]} 12... Qe8 {[%clk
0:02:51.8]} 13. Rfe1 {[%clk 0:01:19.2]} 13... Rc8 {[%clk 0:02:35.3]} 14. Bf1
{[%clk 0:01:18.5]} 14... Nh5 {[%clk 0:02:30.4]} 15. b3 {[%clk 0:00:54.9]} 15...
g5 {[%clk 0:02:29.5]} 16. Bg3 {[%clk 0:00:55]} 16... Nf4 {[%clk 0:02:03.2]} 17.
dxe5 {[%clk 0:00:49.4]} 17... dxe5 {[%clk 0:01:40.4]} 18. Nd5 {[%clk 0:00:49.8]}
18... Nc5 {[%clk 0:01:39.7]} 19. Ne3 {[%clk 0:00:48.8]} 19... Nce6 {[%clk
0:01:29.1]} 20. Nf5 {[%clk 0:00:48.9]} 20... f6 {[%clk 0:01:27.8]} 21. a3 {[%clk
0:00:46.2]} 21... Rd8 {[%clk 0:01:21.2]} 22. b4 {[%clk 0:00:46.7]} 22... axb4
{[%clk 0:01:22.5]} 23. axb4 {[%clk 0:00:47.7]} 23... c5 {[%clk 0:01:23.8]} 24.
b5 {[%clk 0:00:44.3]} 24... Bb7 {[%clk 0:01:07.6]} 25. Rxd8 {[%clk 0:00:29.1]}
25... Qxd8 {[%clk 0:01:08.2]} 26. Ra1 {[%clk 0:00:23.7]} 26... Qc7 {[%clk
0:01:05.2]} 27. Rd1 {[%clk 0:00:20]} 27... Rd8 {[%clk 0:01:05.4]} 28. Rxd8+
{[%clk 0:00:20.3]} 28... Qxd8 {[%clk 0:01:06.6]} 29. Ne3 {[%clk 0:00:21.9]}
29... Nd4 {[%clk 0:01:03]} 30. Qd1 {[%clk 0:00:22.6]} 30... Bxe4 {[%clk
0:01:03]} 31. Nd2 {[%clk 0:00:17.5]} 31... Bg6 {[%clk 0:00:58.7]} 32. Bxf4
{[%clk 0:00:16.9]} 32... exf4 {[%clk 0:00:56.7]} 33. Nd5 {[%clk 0:00:18.3]}
33... Bf7 {[%clk 0:00:54.7]} 34. Nb3 {[%clk 0:00:18.6]} 34... f5 {[%clk
0:00:53.1]} 35. Nxd4 {[%clk 0:00:14.3]} 35... Bxd4 {[%clk 0:00:54.2]} 36. Qe1
{[%clk 0:00:15.4]} 36... Kf8 {[%clk 0:00:30.6]} 37. Qb1 {[%clk 0:00:06.5]} 37...
Bxd5 {[%clk 0:00:26.5]} 38. cxd5 {[%clk 0:00:06.9]} 38... Qxd5 {[%clk
0:00:27.5]} 39. Bd3 {[%clk 0:00:08.2]} 39... f3 {[%clk 0:00:17.4]} 40. Bxf5
{[%clk 0:00:09]} 40... fxg2 {[%clk 0:00:15]} 41. Qe4 {[%clk 0:00:09.8]} 41...
Qa2 {[%clk 0:00:10.2]} 42. Qf3 {[%clk 0:00:09.9]} 42... Kg7 {[%clk 0:00:10.6]}
43. Kxg2 {[%clk 0:00:08.2]} 43... Qf7 {[%clk 0:00:09.5]} 44. Qe4 {[%clk
0:00:08.4]} 44... Qf6 {[%clk 0:00:08.5]} 45. f3 {[%clk 0:00:08.3]} 45... Qe5
{[%clk 0:00:06]} 46. Qxe5+ {[%clk 0:00:09]} 46... Bxe5 {[%clk 0:00:07]} 47. Bd3
{[%clk 0:00:10.9]} 47... Kf6 {[%clk 0:00:07.2]} 48. h3 {[%clk 0:00:12.1]} 48...
Bc3 {[%clk 0:00:06.9]} 49. Kf2 {[%clk 0:00:13.3]} 49... Bd4+ {[%clk 0:00:07.2]}
50. Ke2 {[%clk 0:00:14.2]} 50... Ke5 {[%clk 0:00:09.1]} 51. Bc4 {[%clk
0:00:14.8]} 51... Kf4 {[%clk 0:00:09]} 52. Bd5 {[%clk 0:00:14.9]} 52... Bg1
{[%clk 0:00:09.9]} 53. Be6 {[%clk 0:00:16]} 53... Ke5 {[%clk 0:00:10.8]} 54. Bd7
{[%clk 0:00:16.9]} 54... Kd4 {[%clk 0:00:12.5]} 55. Kd2 {[%clk 0:00:14.9]} 55...
c4 {[%clk 0:00:13.6]} 56. Kc2 {[%clk 0:00:15.8]} 56... Kc5 {[%clk 0:00:13.3]}
57. Be8 {[%clk 0:00:16.8]} 57... Bd4 {[%clk 0:00:13.9]} 58. Bd7 {[%clk
0:00:17.9]} 58... Be5 {[%clk 0:00:13.5]} 59. Be8 {[%clk 0:00:19.1]} 59... Kd4
{[%clk 0:00:14.8]} 60. Bd7 {[%clk 0:00:20]} 60... c3 {[%clk 0:00:13.6]} 61. Bg4
{[%clk 0:00:18.1]} 61... Bf4 {[%clk 0:00:13.4]} 62. Bh5 {[%clk 0:00:18.3]} 62...
Bd2 {[%clk 0:00:12.6]} 63. Bg4 {[%clk 0:00:19.4]} 63... Kc4 {[%clk 0:00:12.4]}
64. Bd7 {[%clk 0:00:20.2]} 64... Kd5 {[%clk 0:00:09]} 65. Be8 {[%clk 0:00:21.1]}
65... Kd4 {[%clk 0:00:10.2]} 66. Bh5 {[%clk 0:00:21.4]} 66... Ke3 {[%clk
0:00:11.4]} 67. Bg4 {[%clk 0:00:22]} 67... Kf4 {[%clk 0:00:12.6]} 68. Bh5 {[%clk
0:00:21.7]} 68... Kg3 {[%clk 0:00:13.4]} 69. Bg4 {[%clk 0:00:22.8]} 69... Be1
{[%clk 0:00:14]} 70. Kd3 {[%clk 0:00:23]} 70... Kh4 {[%clk 0:00:14.1]} 71. Bd7
{[%clk 0:00:21.5]} 71... Bd2 {[%clk 0:00:14.7]} 72. Be6 {[%clk 0:00:21.9]} 72...
Kg3 {[%clk 0:00:12.9]} 73. Bg4 {[%clk 0:00:22.4]} 73... Kf4 {[%clk 0:00:13]} 74.
Bh5 {[%clk 0:00:22.2]} 74... Ke5 {[%clk 0:00:10.8]} 75. Be8 {[%clk 0:00:21.9]}
75... Kd5 {[%clk 0:00:09.7]} 76. Bd7 {[%clk 0:00:21.5]} 76... Kc5 {[%clk
0:00:10.9]} 77. Kc2 {[%clk 0:00:21.8]} 77... Kd4 {[%clk 0:00:11.6]} 78. Be8
{[%clk 0:00:23]} 78... Ke5 {[%clk 0:00:11.2]} 79. Bh5 {[%clk 0:00:23.7]} 79...
Kd4 {[%clk 0:00:11.8]} 80. Be8 {[%clk 0:00:23.5]} 80... Ke3 {[%clk 0:00:13.7]}
81. Bh5 {[%clk 0:00:23.9]} 81... Kf2 {[%clk 0:00:12.4]} 82. Bg4 {[%clk
0:00:24.7]} 82... Kg3 {[%clk 0:00:12.9]} 83. Kd3 {[%clk 0:00:25.9]} 83... Kh4
{[%clk 0:00:13.2]} 84. Bf5 {[%clk 0:00:25]} 84... h5 {[%clk 0:00:12.8]} 85. Bg6
{[%clk 0:00:24.4]} 85... Be1 {[%clk 0:00:12.3]} 86. Kc2 {[%clk 0:00:24.7]} 86...
Bd2 {[%clk 0:00:11.1]} 87. Kd3 {[%clk 0:00:25.8]} 1/2-1/2